fUST/lending_fUST_20250624
["ID","MTS","AMOUNT","RATE_DAILY","PERIOD"]
[367347721,1750758646081,-460.0,0.00019726,2]
[367347723,1750758646090,-460.0,0.00019726,2]
[367347725,1750758646100,-667.88,0.00019726,2]
[367347727,1750758646109,-729.97,0.00019726,2]
[367347729,1750758646119,-970.63,0.00019726,2]
[367347731,1750758646131,-877.19,0.00019726,2]
[367347733,1750758646140,-460.0,0.00019726,2]
[367347735,1750758646149,-460.0,0.00019726,2]
[367347737,1750758646158,-2048.8,0.00019726,2]
[367347739,1750758646168,-460.0,0.00019726,2]
[367347741,1750758646177,-460.0,0.00019726,2]
[367347743,1750758646186,-460.0,0.00019726,2]
[367347745,1750758646196,-567.1,0.00019726,2]
[367347747,1750758646205,-792.63,0.00019726,2]
[367347749,1750758646215,-654.88,0.00019726,2]
[367347751,1750758646224,-743.77,0.00019726,2]
[367347753,1750758646234,-460.0,0.00019726,2]
[367347755,1750758646243,-2427.85,0.00019726,2]
[367347757,1750758646252,-460.0,0.00019726,2]
[367347759,1750758646261,-824.89,0.00019726,2]
[367347765,1750758646309,-725.2,0.00019726,2]
[367347766,1750758646318,-460.0,0.00019726,2]
[367347767,1750758646327,-460.0,0.00019726,2]
[367347768,1750758646336,-460.0,0.00019726,2]
[367347769,1750758646346,-460.0,0.00019726,2]
[367347770,1750758646355,-460.0,0.00019726,2]
[367347772,1750758646364,-460.0,0.00019726,2]
[367347774,1750758646373,-460.0,0.00019726,2]
[367347776,1750758646382,-460.0,0.00019726,2]
[367347778,1750758646392,-957.76,0.00019726,2]
[367347780,1750758646400,-460.0,0.00019726,2]
[367347782,1750758646409,-2406.58,0.00019726,2]
[367347784,1750758646419,-1455.07,0.00019726,2]
[367347786,1750758646428,-978.59,0.00019726,2]
[367347788,1750758646437,-460.0,0.00019726,2]
[367347790,1750758646446,-460.0,0.00019726,2]
[367347792,1750758646455,-460.0,0.00019726,2]
[367347794,1750758646464,-460.0,0.00019726,2]
[367347796,1750758646475,-1036.42,0.00019726,2]
[367347798,1750758646484,-460.0,0.00019726,2]
[367347800,1750758646493,-460.0,0.00019726,2]
[367347802,1750758646502,-1860.68,0.00019726,2]
[367347804,1750758646511,-461.17,0.00019726,2]
[367347806,1750758646519,-460.0,0.00019726,2]
[367347808,1750758646528,-460.0,0.00019726,2]
[367347810,1750758646537,-460.0,0.00019726,2]
[367347812,1750758646546,-460.0,0.00019726,2]
[367347813,1750758646555,-460.0,0.00019726,2]
[367347815,1750758646565,-562.0,0.00019753,2]
[367347818,1750758646574,-562.0,0.00019781,2]
[367347819,1750758646583,-574.0,0.00019808,2]
[367347821,1750758646592,-451.63309187,0.00019898,2]
[367347823,1750758646601,-500.0,0.00019898,2]
[367347825,1750758646611,-500.81876652,0.00019898,2]
[367347828,1750758646621,-500.99452249,0.00019898,2]
[367347830,1750758646631,-176.14583461,0.000199,2]
[367347832,1750758646641,-325.14117093,0.00019918,2]
[367347834,1750758646651,-500.0,0.00019918,2]
[367347835,1750758646662,-500.0,0.00019918,2]
[367347837,1750758646674,-500.0,0.00019919,2]
[367347840,1750758646683,-500.0,0.00019919,2]
[367347842,1750758646692,-500.0,0.00019919,2]
[367347843,1750758646703,-699.10089026,0.0001996,2]
[367347846,1750758646714,-500.0,0.00019973,2]
[367347847,1750758646724,-510.86747445,0.00019973,2]
[367347849,1750758646733,-500.0,0.00019973,2]
[367347852,1750758646742,-500.0,0.00019973,2]
[367347853,1750758646753,-500.0,0.00019973,2]
[367347855,1750758646762,-500.0,0.00019973,2]
[367347857,1750758646771,-500.0,0.00019973,2]
[367347859,1750758646780,-500.0,0.00019973,2]
[367347861,1750758646789,-500.0,0.00019973,2]
[367347863,1750758646798,-500.0,0.00019973,2]
[367347865,1750758646807,-500.0,0.00019973,2]
[367347867,1750758646816,-500.0,0.00019973,2]
[367347869,1750758646825,-500.8432887,0.00019973,2]
[367347871,1750758646835,-500.0,0.00019973,2]
[367347873,1750758646844,-500.0,0.00019973,2]
[367347875,1750758646853,-500.0,0.00019973,2]
[367347877,1750758646862,-500.6478684,0.00019973,2]
[367347879,1750758646871,-500.0,0.00019973,2]
[367347881,1750758646882,-500.0,0.00019973,2]
[367347884,1750758646893,-500.0,0.00019973,2]
[367347886,1750758646903,-500.0,0.00019973,2]
[367347888,1750758646912,-500.0,0.00019973,2]
[367347890,1750758646922,-232.72454134,0.00019973,2]
[367347892,1750758646931,-500.51598291,0.00019973,2]
[367347894,1750758646940,-500.0,0.00019973,2]
[367347896,1750758646949,-500.0,0.00019973,2]
[367347898,1750758646959,-614.18597854,0.00019973,2]
[367347900,1750758646969,-500.0,0.00019973,2]
[367347902,1750758646978,-500.0,0.00019973,2]
[367347904,1750758646989,-416.06737292,0.00019973,2]
[367347906,1750758646998,-500.0,0.00019973,2]
[367347908,1750758647007,-500.0,0.00019973,2]
[367347910,1750758647017,-500.0,0.00019973,2]
[367347912,1750758647027,-500.0,0.00019973,2]
[367347914,1750758647036,-500.0,0.00019973,2]
[367347916,1750758647045,-429.82093682,0.00019973,2]
[367347918,1750758647055,-504.51568774,0.00019973,2]
[367347920,1750758647064,-500.0,0.00019973,2]
[367347922,1750758647073,-500.0,0.00019973,2]
[367347924,1750758647083,-500.0,0.00019973,2]
[367347926,1750758647092,-100000.0,0.0001999,2]
[367347928,1750758647101,-460.0,0.0002,2]
[367347930,1750758647111,-151.0,0.0002,3]
[367347932,1750758647120,-460.0,0.0002,2]
[367347934,1750758647130,-460.0,0.0002,2]
[367347936,1750758647139,-460.0,0.0002,2]
[367347938,1750758647149,-572.81,0.0002,2]
[367347940,1750758647158,-460.0,0.0002,2]
[367347942,1750758647168,-501.92,0.0002,2]
[367347944,1750758647178,-460.0,0.0002,2]
[367347946,1750758647187,-460.0,0.0002,2]
[367347948,1750758647196,-460.0,0.0002,2]
[367347950,1750758647206,-460.0,0.0002,2]
[367347952,1750758647215,-460.0,0.0002,2]
[367347953,1750758647224,-460.0,0.0002,2]
[367347955,1750758647234,-460.0,0.0002,2]
[367347957,1750758647243,-460.0,0.0002,2]
[367347960,1750758647252,-460.0,0.0002,2]
[367347962,1750758647261,-460.0,0.0002,2]
[367347963,1750758647271,-671.28,0.0002,2]
[367347965,1750758647279,-460.0,0.0002,2]
[367347967,1750758647289,-460.0,0.0002,2]
[367347969,1750758647298,-460.0,0.0002,2]
[367347971,1750758647307,-460.0,0.0002,2]
[367347973,1750758647316,-460.0,0.0002,2]
[367347975,1750758647325,-460.0,0.0002,2]
[367347977,1750758647334,-255.46738044,0.0002,2]
[367347979,1750758647344,-460.0,0.0002,2]
[367347981,1750758647354,-460.0,0.0002,2]
[367347983,1750758647363,-460.0,0.0002,2]
[367347985,1750758647372,-460.0,0.0002,2]
[367347987,1750758647381,-486.62933843,0.0002,2]
[367347989,1750758647390,-1241.58,0.0002,2]
[367347991,1750758647399,-460.0,0.0002,2]
[367347993,1750758647408,-317.91736318,0.0002,2]
[367347995,1750758647417,-460.0,0.0002,2]
[367347997,1750758647426,-460.0,0.0002,2]
[367347999,1750758647435,-519.66,0.0002,2]
[367348001,1750758647445,-460.0,0.0002,2]
[367348003,1750758647455,-460.0,0.0002,2]
[367348005,1750758647464,-460.0,0.0002,2]
[367348007,1750758647474,-460.0,0.0002,2]
[367348009,1750758647483,-460.0,0.0002,2]
[367348011,1750758647492,-460.0,0.0002,2]
[367348013,1750758647501,-460.0,0.0002,2]
[367348015,1750758647510,-828.86,0.0002,2]
[367348017,1750758647519,-460.0,0.0002,2]
[367348019,1750758647528,-460.0,0.0002,2]
[367348021,1750758647538,-460.0,0.0002,2]
[367348023,1750758647547,-460.0,0.0002,2]
[367348025,1750758647556,-460.0,0.0002,2]
[367348027,1750758647565,-460.0,0.0002,2]
[367348029,1750758647574,-1268.97,0.0002,2]
[367348031,1750758647584,-460.0,0.0002,2]
[367348033,1750758647594,-460.0,0.0002,2]
[367348035,1750758647603,-3741.09,0.0002,2]
[367348037,1750758647612,-460.0,0.0002,2]
[367348039,1750758647622,-494.14,0.0002,2]
[367348041,1750758647631,-460.0,0.0002,2]
[367348043,1750758647641,-460.0,0.0002,2]
[367348045,1750758647656,-460.0,0.0002,2]
[367348047,1750758647665,-170.98678212,0.0002,2]
[367348049,1750758647675,-460.0,0.0002,2]
[367348052,1750758647686,-460.0,0.0002,2]
[367348053,1750758647696,-460.0,0.0002,2]
[367348055,1750758647705,-460.0,0.0002,2]
[367348058,1750758647715,-3206.19,0.0002,2]
[367348060,1750758647725,-460.0,0.0002,2]
[367348062,1750758647735,-3172.49,0.0002,2]
[367348064,1750758647745,-2041.96,0.0002,2]
[367348066,1750758647755,-460.0,0.0002,2]
[367348068,1750758647765,-522.87833624,0.0002,2]
[367348070,1750758647774,-460.0,0.0002,2]
[367348072,1750758647784,-826.01,0.0002,2]
[367348074,1750758647794,-460.0,0.0002,2]
[367348076,1750758647803,-1322.08,0.0002,2]
[367348078,1750758647814,-486.03,0.0002,2]
[367348080,1750758647823,-460.0,0.0002,2]
[367348082,1750758647833,-460.0,0.0002,2]
[367348084,1750758647842,-741.0,0.0002,2]
[367348086,1750758647852,-460.0,0.0002,2]
[367348088,1750758647862,-460.0,0.0002,2]
[367348090,1750758647872,-460.0,0.0002,2]
[367348092,1750758647881,-460.0,0.0002,2]
[367348094,1750758647891,-1820.89,0.0002,2]
[367348096,1750758647900,-460.0,0.0002,2]
[367348098,1750758647910,-460.0,0.0002,2]
[367348100,1750758647920,-460.0,0.0002,2]
[367348102,1750758647930,-460.0,0.0002,2]
[367348104,1750758647939,-460.0,0.0002,2]
[367348106,1750758647949,-460.0,0.0002,2]
[367348108,1750758647959,-460.0,0.0002,2]
[367348110,1750758647969,-460.0,0.0002,2]
[367348112,1750758647979,-2393.21,0.0002,2]
[367348114,1750758647988,-2176.1,0.0002,2]
[367348116,1750758647998,-460.0,0.0002,2]
[367348118,1750758648008,-554.63,0.0002,2]
[367348120,1750758648017,-460.0,0.0002,2]
[367348122,1750758648027,-1530.51,0.0002,2]
[367348124,1750758648037,-460.0,0.0002,2]
[367348126,1750758648047,-460.0,0.0002,2]
[367348129,1750758648057,-460.0,0.0002,2]
[367348131,1750758648067,-460.0,0.0002,2]
[367348133,1750758648077,-460.0,0.0002,2]
[367348135,1750758648087,-460.0,0.0002,2]
[367348137,1750758648097,-460.0,0.0002,2]
[367348139,1750758648107,-1204.89,0.0002,2]
[367348141,1750758648119,-856.83,0.0002,2]
[367348143,1750758648129,-561.68,0.0002,2]
[367348145,1750758648139,-460.0,0.0002,2]
[367348147,1750758648149,-460.0,0.0002,2]
[367348149,1750758648160,-460.0,0.0002,2]
[367348151,1750758648171,-460.0,0.0002,2]
[367348153,1750758648182,-654.15,0.0002,2]
[367348155,1750758648192,-460.0,0.0002,2]
[367348157,1750758648202,-460.0,0.0002,2]
[367348159,1750758648213,-370.69200348,0.0002,2]
[367348161,1750758648223,-460.0,0.0002,2]
[367348163,1750758648233,-753.1,0.0002,2]
[367348165,1750758648242,-7038.97,0.0002,2]
[367348167,1750758648253,-460.0,0.0002,2]
[367348169,1750758648262,-460.0,0.0002,2]
[367348171,1750758648272,-667.88,0.0002,2]
[367348173,1750758648281,-729.97,0.0002,2]
[367348175,1750758648290,-970.63,0.0002,2]
[367348177,1750758648300,-877.19,0.0002,2]
[367348179,1750758648309,-460.0,0.0002,2]
[367348181,1750758648318,-460.0,0.0002,2]
[367348183,1750758648328,-2048.8,0.0002,2]
[367348185,1750758648338,-460.0,0.0002,2]
[367348187,1750758648347,-460.0,0.0002,2]
[367348189,1750758648356,-460.0,0.0002,2]
[367348191,1750758648366,-567.1,0.0002,2]
[367348193,1750758648375,-792.63,0.0002,2]
[367348195,1750758648385,-654.88,0.0002,2]
[367348197,1750758648395,-743.77,0.0002,2]
[367348199,1750758648405,-460.0,0.0002,2]
[367348201,1750758648415,-2427.85,0.0002,2]
[367348203,1750758648425,-460.0,0.0002,2]
[367348205,1750758648436,-824.89,0.0002,2]
[367348207,1750758648445,-725.2,0.0002,2]
[367348209,1750758648455,-460.0,0.0002,2]
[367348211,1750758648465,-460.0,0.0002,2]
[367348213,1750758648475,-460.0,0.0002,2]
[367348215,1750758648484,-460.0,0.0002,2]
[367348217,1750758648494,-460.0,0.0002,2]
[367348219,1750758648504,-460.0,0.0002,2]
[367348221,1750758648513,-957.76,0.0002,2]
[367348223,1750758648522,-460.0,0.0002,2]
[367348225,1750758648532,-2406.58,0.0002,2]
[367348227,1750758648542,-1455.07,0.0002,2]
[367348230,1750758648552,-978.59,0.0002,2]
[367348232,1750758648562,-460.0,0.0002,2]
[367348234,1750758648572,-460.0,0.0002,2]
[367348236,1750758648582,-460.0,0.0002,2]
[367348238,1750758648591,-460.0,0.0002,2]
[367348240,1750758648601,-1036.42,0.0002,2]
[367348242,1750758648611,-460.0,0.0002,2]
[367348244,1750758648621,-460.0,0.0002,2]
[367348246,1750758648631,-1860.68,0.0002,2]
[367348248,1750758648641,-461.17,0.0002,2]
[367348250,1750758648650,-460.0,0.0002,2]
[367348252,1750758648660,-460.0,0.0002,2]
[367348254,1750758648672,-460.0,0.0002,2]
[367348256,1750758648682,-460.0,0.0002,2]
[367348258,1750758648692,-460.0,0.0002,2]
[367348260,1750758648702,-2301.5081889,0.000201,2]
[367348262,1750758648712,-2301.50818876,0.00020141,2]
[367348264,1750758648722,-500.0,0.00020164,2]
[367348266,1750758648732,-151.0,0.000202,4]
[367348268,1750758648742,-500.0,0.00020251,2]
[367348270,1750758648751,-300.0,0.00020251,2]
[367348272,1750758648761,-151.0,0.00020251,2]
[367348274,1750758648772,-151.0,0.00020251,2]
[367348276,1750758648781,-1688.0,0.00020251,2]
[367348278,1750758648791,-500.0,0.00020251,2]
[367348280,1750758648801,-198.0,0.00020251,2]
[367348282,1750758648811,-500.0,0.00020251,2]
[367348284,1750758648821,-207.4,0.00020251,2]
[367348286,1750758648832,-5000.0,0.00020251,2]
[367348288,1750758648841,-15278.66110917,0.0002027,2]
[367348290,1750758648851,-460.0,0.00020273,2]
[367348292,1750758648861,-460.0,0.00020273,2]
[367348294,1750758648872,-460.0,0.00020273,2]
[367348296,1750758648882,-460.0,0.00020273,2]
[367348298,1750758648891,-572.81,0.00020273,2]
[367348300,1750758648902,-501.92,0.00020273,2]
[367348302,1750758648912,-460.0,0.00020273,2]
[367348304,1750758648922,-460.0,0.00020273,2]
[367348306,1750758648932,-325.44249856,0.00020273,2]
[367348308,1750758648942,-460.0,0.00020273,2]
[367348310,1750758648952,-460.0,0.00020273,2]
[367348312,1750758648962,-460.0,0.00020273,2]
[367348314,1750758648972,-460.0,0.00020273,2]
[367348316,1750758648982,-229.88661072,0.00020273,2]
[367348318,1750758648991,-671.28,0.00020273,2]
[367348320,1750758649001,-460.0,0.00020273,2]
[367348322,1750758649011,-286.52,0.00020273,2]
[367348324,1750758649020,-460.0,0.00020273,2]
[367348326,1750758649030,-460.0,0.00020273,2]
[367348328,1750758649040,-460.0,0.00020273,2]
[367348330,1750758649050,-460.0,0.00020273,2]
[367348333,1750758649060,-460.0,0.00020273,2]
[367348335,1750758649070,-460.0,0.00020273,2]
[367348337,1750758649081,-460.0,0.00020273,2]
[367348339,1750758649091,-460.0,0.00020273,2]
[367348341,1750758649101,-1241.58,0.00020273,2]
[367348343,1750758649110,-460.0,0.00020273,2]
[367348345,1750758649121,-460.0,0.00020273,2]
[367348347,1750758649131,-460.0,0.00020273,2]
[367348349,1750758649141,-519.66,0.00020273,2]
[367348351,1750758649151,-460.0,0.00020273,2]
[367348353,1750758649160,-460.0,0.00020273,2]
[367348355,1750758649170,-460.0,0.00020273,2]
[367348357,1750758649180,-460.0,0.00020273,2]
[367348359,1750758649190,-460.0,0.00020273,2]
[367348361,1750758649199,-460.0,0.00020273,2]
[367348364,1750758649209,-460.0,0.00020273,2]
[367348366,1750758649219,-828.86,0.00020273,2]
[367348368,1750758649229,-460.0,0.00020273,2]
[367348370,1750758649239,-460.0,0.00020273,2]
[367348372,1750758649249,-460.0,0.00020273,2]
[367348374,1750758649259,-460.0,0.00020273,2]
[367348376,1750758649270,-460.0,0.00020273,2]
[367348378,1750758649280,-460.0,0.00020273,2]
[367348380,1750758649290,-1268.97,0.00020273,2]
[367348382,1750758649300,-538.41,0.00020273,2]
[367348384,1750758649310,-460.0,0.00020273,2]
[367348386,1750758649320,-3741.09,0.00020273,2]
[367348388,1750758649330,-460.0,0.00020273,2]
[367348390,1750758649340,-460.0,0.00020273,2]
[367348392,1750758649350,-460.0,0.00020273,2]
[367348394,1750758649360,-460.0,0.00020273,2]
[367348396,1750758649370,-528.66598139,0.00020273,2]
[367348398,1750758649380,-460.0,0.00020273,2]
[367348400,1750758649389,-460.0,0.00020273,2]
[367348402,1750758649399,-3206.19,0.00020273,2]
[367348404,1750758649410,-460.0,0.00020273,2]
[367348406,1750758649420,-3172.49,0.00020273,2]
[367348409,1750758649430,-2041.96,0.00020273,2]
[367348411,1750758649439,-460.0,0.00020273,2]
[367348413,1750758649449,-460.0,0.00020273,2]
[367348415,1750758649459,-826.01,0.00020273,2]
[367348417,1750758649468,-460.0,0.00020273,2]
[367348419,1750758649478,-1322.08,0.00020273,2]
[367348421,1750758649487,-486.03,0.00020273,2]
[367348423,1750758649497,-460.0,0.00020273,2]
[367348425,1750758649507,-460.0,0.00020273,2]
[367348427,1750758649517,-741.0,0.00020273,2]
[367348429,1750758649527,-460.0,0.00020273,2]
[367348432,1750758649546,-460.0,0.00020273,2]
[367348434,1750758649558,-185.01,0.00020273,2]
[367348437,1750758649568,-460.0,0.00020273,2]
[367348439,1750758649579,-1820.89,0.00020273,2]
[367348441,1750758649589,-460.0,0.00020273,2]
[367348443,1750758649600,-460.0,0.00020273,2]
[367348445,1750758649610,-460.0,0.00020273,2]
[367348447,1750758649620,-460.0,0.00020273,2]
[367348449,1750758649630,-460.0,0.00020273,2]
[367348451,1750758649642,-460.0,0.00020273,2]
[367348453,1750758649654,-460.0,0.00020273,2]
[367348456,1750758649664,-452.45934072,0.00020273,2]
[367348458,1750758649675,-2393.21,0.00020273,2]
[367348460,1750758649687,-2176.1,0.00020273,2]
[367348462,1750758649697,-460.0,0.00020273,2]
[367348464,1750758649707,-554.63,0.00020273,2]
[367348466,1750758649718,-460.0,0.00020273,2]
[367348469,1750758649730,-1530.51,0.00020273,2]
[367348471,1750758649740,-460.0,0.00020273,2]
[367348473,1750758649750,-460.0,0.00020273,2]
[367348475,1750758649761,-460.0,0.00020273,2]
[367348477,1750758649772,-460.0,0.00020273,2]
[367348479,1750758649782,-460.0,0.00020273,2]
[367348481,1750758649792,-460.0,0.00020273,2]
[367348483,1750758649802,-1204.89,0.00020273,2]
[367348486,1750758649813,-856.83,0.00020273,2]
[367348488,1750758649823,-474.36753628,0.00020273,2]
[367348490,1750758649833,-460.0,0.00020273,2]
[367348492,1750758649844,-460.0,0.00020273,2]
[367348494,1750758649855,-654.15,0.00020273,2]
[367348496,1750758649866,-460.0,0.00020273,2]
[367348498,1750758649877,-460.0,0.00020273,2]
[367348501,1750758649888,-460.0,0.00020273,2]
[367348503,1750758649901,-753.1,0.00020273,2]
[367348523,1750758650077,-7038.97,0.00020273,2]
[367348525,1750758650086,-460.0,0.00020273,2]
[367348527,1750758650096,-460.0,0.00020273,2]
[367348529,1750758650105,-667.88,0.00020273,2]
[367348531,1750758650114,-729.97,0.00020273,2]
[367348533,1750758650124,-970.63,0.00020273,2]
[367348535,1750758650133,-877.19,0.00020273,2]
[367348537,1750758650143,-460.0,0.00020273,2]
[367348539,1750758650153,-460.0,0.00020273,2]
[367348541,1750758650162,-2048.8,0.00020273,2]
[367348543,1750758650172,-460.0,0.00020273,2]
[367348545,1750758650181,-460.0,0.00020273,2]
[367348547,1750758650190,-460.0,0.00020273,2]
[367348549,1750758650200,-567.1,0.00020273,2]
[367348552,1750758650209,-792.63,0.00020273,2]
[367348553,1750758650218,-654.88,0.00020273,2]
[367348555,1750758650227,-743.77,0.00020273,2]
[367348557,1750758650236,-460.0,0.00020273,2]
[367348559,1750758650245,-2427.85,0.00020273,2]
[367348561,1750758650254,-824.89,0.00020273,2]
[367348563,1750758650263,-725.2,0.00020273,2]
[367348565,1750758650272,-460.0,0.00020273,2]
[367348567,1750758650281,-460.0,0.00020273,2]
[367348569,1750758650289,-460.0,0.00020273,2]
[367348571,1750758650298,-460.0,0.00020273,2]
[367348573,1750758650307,-460.0,0.00020273,2]
[367348575,1750758650316,-460.0,0.00020273,2]
[367348577,1750758650325,-957.76,0.00020273,2]
[367348579,1750758650340,-460.0,0.00020273,2]
[367348581,1750758650349,-2406.58,0.00020273,2]
[367348583,1750758650358,-1455.07,0.00020273,2]
[367348585,1750758650367,-978.59,0.00020273,2]
[367348587,1750758650377,-460.0,0.00020273,2]
[367348589,1750758650385,-460.0,0.00020273,2]
[367348590,1750758650395,-460.0,0.00020273,2]
[367348591,1750758650404,-460.0,0.00020273,2]
[367348592,1750758650413,-1036.42,0.00020273,2]
[367348593,1750758650423,-460.0,0.00020273,2]
[367348594,1750758650432,-1860.68,0.00020273,2]
[367348595,1750758650441,-461.17,0.00020273,2]
[367348596,1750758650451,-460.0,0.00020273,2]
[367348597,1750758650462,-460.0,0.00020273,2]
[367348598,1750758650472,-460.0,0.00020273,2]
[367348599,1750758650482,-460.0,0.00020273,2]
[367348600,1750758650491,-460.0,0.00020273,2]
[367348602,1750758650501,-151.0,0.000203,3]
[367348603,1750758650509,-151.0,0.000203,3]
[367348605,1750758650518,-463.87965979,0.00020306,2]
[367348607,1750758650528,-800.0,0.00020361,2]
[367348609,1750758650537,-544.99325607,0.00020378,2]
[367348611,1750758650546,-168.0,0.0002038,2]
[367348613,1750758650555,-2301.50818876,0.00020383,3]
[367348615,1750758650564,-800.0,0.00020384,2]
[367348617,1750758650574,-151.0,0.000204,3]
[367348619,1750758650583,-151.0,0.000204,3]
[367348621,1750758650593,-2000.0,0.0002041,2]
[367348623,1750758650603,-2000.0,0.0002041,2]
[367348625,1750758650612,-2000.0,0.0002041,2]
[367348627,1750758650621,-2000.0,0.0002041,2]
[367348629,1750758650630,-2000.0,0.0002041,2]
[367348631,1750758650640,-2000.0,0.0002041,2]
[367348633,1750758650649,-603.55877742,0.0002041,2]
[367348635,1750758650659,-151.0,0.00020412,2]
[367348637,1750758650669,-151.0,0.00020412,2]
[367348639,1750758650678,-151.0,0.00020412,2]
[367348641,1750758650687,-500.0,0.00020425,2]
[367348643,1750758650697,-168.0,0.0002043,2]
[367348645,1750758650706,-79467.12812367,0.00020434,2]
[367348647,1750758650715,-155.87488093,0.00020439,2]
[367348649,1750758650724,-166.07256633,0.00020439,2]
[367348651,1750758650733,-247.54744974,0.00020439,2]
[367348653,1750758650742,-1000.0,0.00020446,2]
[367348655,1750758650752,-176.14583461,0.00020448,2]
[367348657,1750758650761,-1000.0,0.00020466,2]
[367348659,1750758650771,-500.0,0.00020466,2]
[367348661,1750758650780,-1000.0,0.00020467,2]
[367348662,1750758650789,-1000.0,0.00020467,2]
[367348664,1750758650800,-279.03958555,0.00020467,2]
[367348666,1750758650809,-151.0,0.000205,4]
[367348668,1750758650818,-274.17274144,0.00020521,2]
[367348670,1750758650827,-500.0,0.00020521,2]
[367348672,1750758650837,-1062.69625406,0.00020521,2]
[367348674,1750758650846,-1000.0,0.00020521,2]
[367348676,1750758650856,-453.20022986,0.00020521,2]
[367348678,1750758650864,-1000.0,0.00020521,2]
[367348680,1750758650874,-1000.0,0.00020521,2]
[367348682,1750758650883,-1000.0,0.00020521,2]
[367348684,1750758650893,-1000.0,0.00020521,2]
[367348686,1750758650903,-504.51865876,0.00020521,2]
[367348688,1750758650912,-500.0,0.00020521,2]
[367348690,1750758650921,-1000.0,0.00020521,2]
[367348692,1750758650931,-224.00444455,0.00020521,2]
[367348694,1750758650941,-1000.0,0.00020521,2]
[367348696,1750758650950,-1000.0,0.00020521,2]
[367348698,1750758650960,-1000.0,0.00020521,2]
[367348700,1750758650971,-1026.48524204,0.00020521,2]
[367348702,1750758650980,-428.52617537,0.00020521,2]
[367348704,1750758650991,-501.34280448,0.00020521,2]
[367348706,1750758651000,-1000.0,0.00020521,2]
[367348708,1750758651010,-1000.0,0.00020521,2]
[367348710,1750758651020,-395.5265441,0.00020521,2]
[367348712,1750758651030,-1000.0,0.00020521,2]
[367348714,1750758651040,-1000.0,0.00020521,2]
[367348716,1750758651051,-160.0,0.00020538,3]
[367348718,1750758651060,-4539.22,0.00020538,3]
[367348720,1750758651070,-2269.6,0.00020538,3]
[367348722,1750758651079,-1134.8,0.00020538,3]
[367348724,1750758651089,-567.4,0.00020538,3]
[367348726,1750758651099,-2132.65529422,0.00020538,3]
[367348728,1750758651108,-846.68469334,0.00020538,3]
[367348730,1750758651118,-213.66798275,0.00020538,3]
[367348732,1750758651127,-460.0,0.00020547,2]
[367348734,1750758651137,-285.44,0.00020547,2]